Cogmind - Beta 16 @@@ ROGUE MODE // 2025.10.26 @ 03:49:41 Player: x'z Result: Destroyed by G-47 Trooper with Particle Gun Performance ------------- Evolutions (0) 0 Regions Visited (1) 200 Robots Destroyed (8) 40 Value Destroyed (88) 88 Prototype IDs (0) 0 Alien Tech Used (0) 0 Bonus (0) 0 TOTAL SCORE: 328 Bonus ------- None Cogmind --------- Core Integrity 0/250 Matter 300/300 Energy 100/100 System Corruption 0% Temperature Cool (9) Movement Core (350) Ox6 Location -10/Materials Parts ------- > --- POWER (1) -------- (None) > --- PROPULSION (2) --- (None) > --- UTILITY (2) ------ Large Storage Unit > --- WEAPON (2) ------- (None) > --- INVENTORY (15) --- Ion Engine Wheel Compact Wheel Small Storage Unit Utility Shielding Utility Shielding Heavy EM Pulse Gun Heavy EM Pulse Gun Heavy EM Pulse Gun Heavy EM Pulse Gun Medium Laser Light EM Pulse Cannon Light EM Pulse Cannon Assault Rifle Light Assault Rifle Peak State ------------ > --- POWER ------------ Light Ion Engine > --- PROPULSION ------- Light Treads Light Treads > --- UTILITY ---------- Large Storage Unit Utility Shielding > --- WEAPON ----------- Light EM Pulse Cannon Light EM Pulse Cannon > --- INVENTORY -------- Ion Engine Wheel Compact Wheel Small Storage Unit Utility Shielding Heavy EM Pulse Gun Heavy EM Pulse Gun Heavy EM Pulse Gun Heavy EM Pulse Gun Medium Laser Light EM Pulse Cannon Light EM Pulse Cannon Assault Rifle Light Assault Rifle [Rating: 11] Favorites ----------- Power Light Ion Engine Engine Light Ion Engine Propulsion Light Treads Treads Light Treads Utility Small Storage Unit Storage Small Storage Unit Protection Utility Shielding Weapon Assault Rifle Energy Cannon Light EM Pulse Cannon Ballistic Gun Assault Rifle Build | -11 -10 ------- Run | Yrd Mat Slots Evolved . | . . Power . | . . Propulsion . | . . Utility . | . . Weapon . | . . Parts Attached 11 | 6 5 Power 1 | 1 . Engine 1 | 1 . Core . | . . Reactor . | . . Propulsion 2 | 2 . Treads 2 | 2 . Leg . | . . Wheel . | . . Hover . | . . Flight . | . . Utility 4 | 1 3 Device . | . . Storage 3 | 1 2 Processor . | . . Hackware . | . . Protection 1 | . 1 Artifact . | . . Weapon 4 | 2 2 Energy Gun . | . . Energy Cannon 2 | . 2 Ballistic Gun 2 | 2 . Ballistic Cannon . | . . Launcher . | . . Special Weapon . | . . Impact Weapon . | . . Slashing Weapon . | . . Piercing Weapon . | . . Special Melee Weapon . | . . Unidentified Prototypes . | . . Parts Lost 5 | . 5 Power 1 | . 1 Propulsion 2 | . 2 Utility . | . . Weapon 2 | . 2 Highest Loss Streak 4 | . 4 To Critical Strikes . | . . Average Backups 7 | 2 10 Power . | . 1 Propulsion 1 | 1 2 Utility 1 | . 1 Weapon 3 | . 5 Tool/Special . | . . Unused Backups 11 | . 11 Power 1 | . 1 Propulsion 2 | . 2 Utility 1 | . 1 Weapon 7 | . 7 Tool/Special . | . . Average Slot Usage (%) 79 | . 79 Engine 9 | . 9 Treads 22 | . 22 Storage 15 | . 15 Protection 8 | . 8 Energy Cannon 9 | . 9 Ballistic Gun 12 | . 12 Peak Build Rating 11 | 6 11 Average Rating 6 | 5 7 On Entrance 3 | . 6 Avg Prop Armor Cover (%) . | . . Naked Turns . | . . Heaviest Build 32 | 11 32 Greatest Support 40 | 40 40 Greatest Overweight (x) 6 | . 6 Average Overweight (x) . | . . Largest Inventory Capacity 15 | 8 15 Average Capacity 11 | 7 13 Most Carried 15 | 4 15 Average Carried 7 | 3 10 Final Capacity 15 | 8 15 Final Carried 15 | 4 15 Class Distribution -------------------- 100% | Mutant Dominant Class ---------------- Mutant | -10/Materials Resources | -11 -10 ----------- Run | Yrd Mat Matter Collected 322 | 296 26 Remotely . | . . Salvage Created 262 | 169 93 Parts 21 | 12 9 Haulers Intercepted . | . . Recyclers Shooed 1 | . 1 Parts Field Recycled . | . . Retrieved Matter . | . . Parts Self-Destructed . | . . Prevented . | . . Parts Restored . | . . Kills | -11 -10 ------- Run | Yrd Mat Combat Hostiles Destroyed 1 | . 1 Cannons 1 | . 1 Classes Destroyed 5 | 3 2 Worker 2 | 1 1 Tunneler 2 | 2 . Recycler 1 | 1 . Watcher 2 | . 2 Grunt 1 | . 1 Best Kill Streak 4 | 4 2 Combat Bots Only 1 | . 1 Max Kills in Single Turn 1 | 1 1 Gunslinging . | . . Exploded . | . . Melee . | . . Uniques/NPCs Destroyed . | . . Combat | -11 -10 -------- Run | Yrd Mat Hostile Shots Fired 97 | . 97 Missed 28 | . 28 Hits 69 | . 69 Projectile 69 | . 69 Critical Strikes 2 | . 2 Damage Taken 840 | . 840 Core 263 | . 263 Absorbed by Shields . | . . Redirected to Shielding 9 | . 9 Core Remaining (%) 100 | 100 . Volleys Fired 29 | 9 20 Largest 2 | 2 2 Hottest 112 | 40 112 Shots Fired 42 | 18 24 Gun 24 | 18 6 Cannon 18 | . 18 Launcher . | . . Special . | . . Kinetic 24 | 18 6 Thermal . | . . Explosive . | . . Electromagnetic 18 | . 18 Robot Hit Streak 4 | 4 2 Robot Miss Streak 4 | 2 4 Penetration Max . | . . Secondary Targets . | . . Shots Hit Robots 18 | 10 8 Core Hits 12 | 6 6 Critical Kills . | . . Critical Parts Destroyed . | . . Critical Strikes . | . . Melee Attacks . | . . Impact . | . . Slashing . | . . Piercing . | . . Sneak Attacks . | . . Combat Hostiles . | . . Follow-up Attacks . | . . Damage Inflicted 466 | 155 311 Guns 155 | 155 . Cannons 259 | . 259 Explosions . | . . Melee . | . . Ramming 52 | . 52 Kinetic 155 | 155 . Thermal . | . . Explosive . | . . Electromagnetic 259 | . 259 Impact . | . . Slashing . | . . Piercing . | . . Highest Corruption . | . . Average Corruption . | . . Corruption Purged . | . . Corruption Blocked . | . . Overload Shots . | . . Overflow Damage 6 | . 6 Projectiles 6 | . 6 Explosions . | . . Melee . | . . Knockbacks 1 | . 1 Impact 1 | . 1 Kinetic . | . . Secondary . | . . Self-Inflicted Damage . | . . Shots . | . . Rammed 8 | . 8 Targets Rammed 8 | . 8 Kicked . | . . Crushed . | . . Highest Temperature 66 | . 66 Average Temperature 21 | . 21 Received Heat Transfer 504 | . 504 Siege Activations . | . . Martial Activations . | . . Shielding Activations . | . . Robots Disrupted . | . . Combat Hostiles . | . . Robots Corrupted . | . . Combat Hostiles . | . . Parts Fried . | . . Impact Corruptions . | . . Robots Melted . | . . Combat Hostiles . | . . Parts Melted . | . . Heat Transferred . | . . Parts Sabotaged . | . . Parts Stolen . | . . Parts Stripped . | . . Power Chain Reactions . | . . Alert | -11 -10 ------- Run | Yrd Mat Maximum Alert Level . | . . Low Security (%) 100 | 100 100 Level 1 . | . . Level 2 . | . . Level 3 . | . . Level 4 . | . . Level 5 . | . . High Security . | . . Max Security . | . . Peak Influence 112 | 10 112 Initial . | . . Average 18 | 1 28 Influence Increases 224 | 20 204 Destroy 0b10 Robot/C 20 | . 20 Destroy 0b10 Robot/NC 35 | 20 15 Destroy Leader 4 | . 4 Lose Combat Pursuer 165 | . 165 Influence Decreases 147 | 20 127 Time Decay 97 | 20 77 Lost Part 50 | . 50 Squads Dispatched 1 | . 1 Investigation . | . . Extermination . | . . Reinforcement 1 | . 1 Assault . | . . Garrison . | . . Intercept . | . . Searches Triggered . | . . Construction Impeded . | . . Haulers Reinforced . | . . Active Scanning Responses . | . . Cargo Convoy Interrupts . | . . Stealth | -11 -10 --------- Run | Yrd Mat Distress Signals 2 | . 2 Communications Jammed . | . . Distress Signals . | . . Times Spotted 16 | . 16 Peak Tracking Total 5 | . 5 Tactical Retreats 5 | . 5 Traps | -11 -10 ------- Run | Yrd Mat Traps Triggered . | . . Indirectly . | . . Trap Hack Attempts . | . . Triggered . | . . Disarmed . | . . Reprogrammed . | . . Reused . | . . Traps Extracted . | . . Installed . | . . Triggered . | . . Machines | -11 -10 ---------- Run | Yrd Mat Machines Disabled . | . . Max in Single Turn . | . . Machines Repaired . | . . Machines Dismantled . | . . Machines Sabotaged . | . . Overloaded Fab Kills . | . . Hacking | -11 -10 --------- Run | Yrd Mat Machines Accessed . | . . Terminals . | . . Fabricators . | . . Repair Stations . | . . Recycling Units . | . . Scanalyzers . | . . Garrison Access . | . . Total Hacks . | . . Successful . | . . Failed . | . . Catastrophic . | . . Database Lockouts . | . . Manual . | . . Terminals . | . . Fabricators . | . . Repair Stations . | . . Recycling Units . | . . Scanalyzers . | . . Garrison Access . | . . Terminal Hacks . | . . Fabricator Hacks . | . . Repair Station Hacks . | . . Recycling Unit Hacks . | . . Scanalyzer . | . . Garrison Access Hacks . | . . Unauthorized Hacks . | . . Terminals . | . . Fabricators . | . . Repair Stations . | . . Recycling Units . | . . Scanalyzers . | . . Garrison Access . | . . Data Cores Recovered . | . . Used . | . . Hacking Detections . | . . Full Trace Events . | . . Feedback Events . | . . Feedback Blocked . | . . Robot Schematics Acquired . | . . Robots Built . | . . Authchips . | . . Time . | . . Total Robot Build Rating . | . . Part Schematics Acquired . | . . Parts Built . | . . Authchips . | . . Time . | . . Total Part Build Rating . | . . Part Studies Acquired . | . . Parts Repaired . | . . Time . | . . Parts Recycled . | . . Recycled Matter . | . . Retrieved Matter . | . . Retrieved Components . | . . Parts Scanalyzed . | . . Part Schematics Acquired . | . . Parts Damaged . | . . Bothacking | -11 -10 ------------ Run | Yrd Mat Used RIF Installer . | . . Robots Hacked . | . . Non-combat . | . . Combat . | . . Robot Hacks Applied . | . . Relay Couplers Released . | . . Fabnet Peak Effective % . | . . Robots Rewired . | . . Allies Hacked . | . . Hacks Repelled . | . . Allies | -11 -10 -------- Run | Yrd Mat Total Allies . | . . Largest Group . | . . Highest-Rated Group . | . . Highest-Rated Ally . | . . Total Orders . | . . Ally Attacks . | . . Total Damage . | . . Kills . | . . Allies Corrupted . | . . Allies Melted . | . . Intel | -11 -10 ------- Run | Yrd Mat Active Infowar (turns) . | . . Robot Analysis Total . | . . Derelict Logs Recovered . | . . Drone Launches . | . . Drone Recoveries . | . . Exploration | -11 -10 ------------- Run | Yrd Mat Turns Passed 500 | 183 317 Spaces Moved 225 | 94 131 Core 22 | 8 14 Treads 203 | 86 117 Legs . | . . Wheels . | . . Hover . | . . Flight . | . . Fastest Speed 50 | 50 160 Average Speed 168 | 150 180 Slowest Speed 350 | 160 350 Overloaded Moves . | . . Propulsion Burnouts . | . . Robots Hopped . | . . Potential Cave-ins . | . . Cave-ins Triggered . | . . Exploration Rate (%) 14 | 5 23 Regions Visited 1 Branch Regions . Pre-discovered Areas . | . . Known Exits Taken . | . . Unknown Exits Taken 1 | 1 . Scrap Searched . | . . Spaces Dug . | . . Terrain Destroyed . | . . Melee . | . . Projectile . | . . AOE . | . . Terrain Rammed . | . . Walls Destroyed . | . . Machines Disabled . | . . Actions | -11 -10 --------- Run | Yrd Mat Total 299 | 119 180 Wait 1 | 1 . Move 224 | 93 131 Hop . | . . Pick Up 23 | 10 13 Fast Attach . | . . Attach 8 | 6 2 Detach . | . . Swap 4 | . 4 Drop 2 | . 2 Fire 29 | 9 20 Melee . | . . Ram 1 | . 1 Kick . | . . Crush 7 | . 7 Escape Stasis . | . . Rewire . | . . Trap . | . . Miscellaneous . | . . Route ------- -11/Scrapyard -10/Materials History --------- Turn | Location | Event 6 | -11/Scrapyard | Discovered new exit (range 16) 184 | -11/Scrapyard | Entered Materials 308 | -10/Materials | Build established: Mutant 450 | -10/Materials | Core integrity fell below 50% 478 | -10/Materials | Lost 4 parts (2n2w) 482 | -10/Materials | Core integrity fell below 20% 501 | -10/Materials | Destroyed by G-47 Trooper with Particle Gun Last Messages --------------- G-34 Mercenary misfires. Lgt. EM Pulse Cannon destroyed. K-01 Serf collects debris. G-34 Mercenary misfires. K-01 Serf collects debris. G-34 Mercenary misfires. Lgt. Treads destroyed. G-34 Mercenary misfires. K-01 Serf destroyed. Lgt. EM Pulse Cannon destroyed. G-34 Mercenary IFF system glitched. Lgt. Treads destroyed. G-34 Mercenary misfires. Dropped Utility Shielding. G-34 Mercenary misfires. Acquired Utility Shielding. G-34 Mercenary misfires. Critical hit (Burn: +37). Slammed into K-01 Serf. Purification Channel disabled. Map ----- +----------------------------------------------------+ | ?????????????????????####### # #???? #? | | ???????????????????????????####### #???? #? | | ?????????????????????????????????# #??? #? | | ?????????????????????????????????# #??? #? | | ?????????????????????????????????####/#####?? #? | | ???????????????????????????????????# ###### #? | | ???????????????????????????????????# #? | | ??????????????????????????########?# #######+### | | ??????????????????????????# !! #?##!##???? | | ??????????????????????????# !! #??# #???? """ | | ??????????????????????????# #??#=#???? """ | | ??????????????????????????## ####=#??? ] """ | | ???????????????????????????# =%#### | | ???????????????????????????# != / """ | | ???????????????????????????# % # * """ | | ????????????????############ # """ | | ????????????????# / !% + | | ????????????????# " %#############+############ | | ????????????????# "" #??????##### #????????? | | ????????????????# "" ###### # #????????? | | ????????????????# """ # # #????????? | | ????????????????# ! "" + T # #????????? | | ????????????????# """ #g # [ #????????? | | ????????????????# """ # #### #![ #????????? | | ????????????????# """ # #?????? ## #????????? | | ????????????????# " #@#????????# #????????? | | ????????????????#? # #????????# #????????? | | ?????????????????########+#????????######????????? | | ?????????????????????????????????????????????????? | | ?????????????????????????????????????????????????? | | ?????????????????????????????????????????????????? | | ?????????????????????????????????????????????????? | | ?????????????????????????????????????????????????? | | ?????????????????????????????????????????????????? | | ?????????????????????????????????????????????????? | | ?????????????????????????????????????????????????? | | ?????????????????????????????????????????????????? | | ?????????????????????????????????????????????????? | | ?????????????????????????????????????????????????? | | ?????????????????????????????????????????????????? | | ?????????????????????????????????????????????????? | | ?????????????????????????????????????????????????? | | ?????????????????????????????????????????????????? | | ?????????????????????????????????????????????????? | | ?????????????????????????????????????????????????? | | ?????????????????????????????????????????????????? | | ?????????????????????????????????????????????????? | | | | | | | +----------------------------------------------------+ Best States ------------- Heat Dissipation 25 Energy Generation 10 Energy Capacity 125 Matter Stores 300 Matter Capacity 300 Sight Range 16 Terrain Scan Density 10 Utility Shielding 33 Evasion (%) 40 Recoil Reduction 2 Item Schematics ----------------- None Robot Schematics ------------------ None Fabricated ------------ Nothing Repaired ---------- Nothing Studied --------- None Alien Tech Used ----------------- None Achievements -------------- None Challenges ------------ None Game ------ Seed SystemAntimatterLauncher Manual? 0 Play Time 00:08:10 Cumulative 4.9 hours Start 2025.10.26 @ 03:44:29 End 2025.10.26 @ 03:49:41 Sessions 1 Manual Loads 0 Difficulty Rogue Special Mode None Game No. 15 Rogue 15 Adventurer 0 Explorer 0 Win Type - Total 0 Types 0/0/0/0/0/0/0/0/0/0 Lore% 2 Gallery% 10 Achievement% 9 Wizard Run 0 Options --------- Layout 1 ASCII 0 Keyboard 0 Movement Numpad Keybinds 0 Fullscreen 1 Font 32/SmallcapsGlow Map View 50x35 Zoom Use 0% Tactical HUD 0 Map Filters NONE Filters NONE Steam 1 RUN: 3a86851c-0920-4b9e-b0da-f1eeecafe6f5